bitfinex/quotes_ETHUSD_20241004
["timestamp","ask_amount","ask_price","bid_price","bid_amount"]
[1728057695871,4.12371,2425.0,2424.9,0.05]
[1728057696080,4.12371,2425.0,2424.8,2.0]
[1728057696081,4.12299,2425.5,2425.3,0.05]
[1728057696233,4.1222,2425.9,2425.3,0.05]
[1728057696234,4.1226,2425.7,2425.3,0.05]
[1728057696583,4.1226,2425.7,2425.6,0.05]
[1728057696584,8.24525,2425.7,2425.6,0.05]
[1728057697671,4.12235,2425.8,2425.6,0.05]
[1728057697887,4.12213,2426.0,2424.8,2.0]
[1728057697888,4.1221,2426.0,2425.8,0.05]
[1728057698241,4.12218,2425.9,2425.8,0.05]
[1728057698679,4.12196,2426.1,2425.8,0.05]
[1728057698878,4.12196,2426.1,2426.0,0.05]
[1728057698879,4.12184,2426.1,2426.0,0.05]
[1728057699388,4.12218,2425.9,2425.8,0.05]
[1728057701545,4.12106,2426.6,2426.1,4.17172]
[1728057701747,4.12167,2426.2,2426.1,0.05]
[1728057702383,4.92957,2426.2,2426.1,0.05]
[1728057702586,5.834678,2426.2,2425.7,0.05]
[1728057702877,5.834708,2426.2,2425.7,0.05]
[1728057703095,4.12235,2425.8,2425.7,0.05]
[1728057705180,4.12269,2425.6,2425.5,0.05]
[1728057705395,4.90139,2425.6,2425.5,0.05]
[1728057705612,4.90139,2425.6,2424.8,6.12401]
[1728057705613,4.12303,2425.4,2425.3,0.05]
[1728057705770,4.12337,2425.2,2425.1,0.05]
[1728057706304,0.7787,2425.6,2424.9,0.05]
[1728057706305,4.12357,2425.1,2424.9,0.05]
[1728057706506,0.7787,2425.6,2425.1,0.05]
[1728057706507,4.12337,2425.2,2425.1,0.05]
[1728057707563,4.12321,2425.3,2425.1,0.05]
[1728057707773,4.12337,2425.2,2425.1,0.05]
[1728057709977,4.77002847,2425.2,2425.1,0.05]
[1728057710431,0.64665847,2425.2,2425.1,0.05]
[1728057710987,4.77002847,2425.2,2425.1,0.05]
[1728057711485,0.64665847,2425.2,2425.1,4.17354]
[1728057711805,0.7615,2425.9,2425.6,0.05]
[1728057712153,4.12266,2425.7,2425.6,0.05]
[1728057712291,4.12286,2425.5,2425.4,0.05]
[1728057712493,4.1232,2425.3,2425.2,0.05]
[1728057713813,4.6732,2425.3,2425.2,0.05]
[1728057714499,4.1232,2425.3,2425.2,0.05]
[1728057716433,4.6732,2425.3,2425.2,0.05]
[1728057716645,4.12357,2425.1,2424.9,0.05]
[1728057716845,5.497956,2425.3,2424.9,0.05]
[1728057716846,4.12348,2425.2,2424.9,0.05]
[1728057717201,4.12371,2425.0,2424.9,0.05]
[1728057717422,4.12354,2425.1,2424.9,0.05]
[1728057717946,0.763,2425.6,2425.3,0.05]
[1728057718109,4.12301,2425.5,2425.3,0.05]
[1728057718319,4.12303,2425.4,2425.3,0.05]
[1728057719541,4.67303,2425.4,2425.3,0.05]
[1728057720472,4.12266,2425.7,2425.6,0.05]
[1728057720616,4.76879077,2425.9,2425.6,0.05]
[1728057720953,4.12252,2425.7,2425.6,0.05]
[1728057722231,4.76883077,2425.9,2425.8,0.05]
[1728057722753,4.12269,2425.6,2425.5,0.05]
[1728057723535,5.497213,2425.6,2425.5,0.05]
[1728057723726,6.293013,2425.6,2425.5,0.05]
[1728057724246,6.293013,2425.6,2425.1,0.05]
[1728057724247,4.67337,2425.2,2425.1,0.05]
[1728057724450,4.12371,2425.0,2424.9,0.05]
[1728057725283,4.94141,2425.0,2424.9,0.05]
[1728057725577,4.12371,2425.0,2424.9,0.05]
[1728057727020,5.498439,2425.0,2424.9,0.05]
[1728057727423,4.948439,2425.0,2424.9,0.05]
[1728057727717,4.12371,2425.0,2424.9,0.05]
[1728057727934,0.824523,2425.6,2425.1,0.05]
[1728057727935,1.603423,2425.6,2425.1,0.05]
[1728057728131,4.12311,2425.4,2425.3,0.05]
[1728057729689,0.64655077,2425.9,2425.3,0.05]
[1728057729832,0.64655077,2425.9,2424.8,2.0]
[1728057729833,4.12269,2425.6,2425.5,0.05]
[1728057730259,4.12303,2425.4,2425.3,0.05]
[1728057731476,4.1229,2425.5,2425.3,0.05]
[1728057732354,4.12303,2425.4,2425.3,0.05]
[1728057733058,4.12303,2425.4,2425.1,0.05]
[1728057733059,4.12337,2425.2,2425.1,0.05]
[1728057733401,4.67337,2425.2,2425.1,0.05]
[1728057733602,4.12337,2425.2,2425.1,0.05]
[1728057733760,5.736723,2425.4,2424.8,2.0]
[1728057733761,4.12354,2425.1,2424.9,0.05]
[1728057733956,1.613693,2425.4,2425.2,0.05]
[1728057734314,4.12326,2425.3,2425.2,0.05]
[1728057735092,5.1092623,2425.3,2425.2,0.05]
[1728057735279,4.12326,2425.3,2425.2,0.05]
[1728057735501,4.1228,2425.6,2425.5,0.05]
[1728057735804,4.12255,2425.7,2425.5,0.05]
[1728057736328,0.64655077,2425.9,2425.7,0.05]
[1728057736547,0.64655077,2425.9,2425.8,4.12235]
[1728057736841,3.57473823,2427.2,2426.8,0.05]
[1728057736842,4.12041,2427.0,2426.8,0.05]
[1728057736980,4.12024,2427.1,2425.9,0.4143]
[1728057736981,4.12024,2427.1,2427.0,0.05]
[1728057737380,4.12024,2427.1,2425.9,4.5364]
[1728057737381,4.12024,2427.1,2426.8,0.05]
[1728057737630,4.12048,2426.9,2426.8,0.05]
[1728057737922,4.12082,2426.7,2426.6,0.05]
[1728057738810,4.12167,2426.2,2426.1,0.05]
[1728057739012,4.12167,2426.2,2425.9,0.05]
[1728057739013,4.12201,2426.0,2425.9,0.05]
[1728057739333,4.12237,2425.8,2425.6,0.05]
[1728057739512,4.1222,2425.9,2425.8,0.05]
[1728057740321,4.12252,2425.7,2425.6,0.05]
[1728057740838,0.64647493,2425.9,2425.8,0.05]
[1728057741483,4.12179,2426.2,2426.1,0.05]
[1728057741911,4.12151,2426.3,2426.1,0.05]
[1728057742108,4.76805396,2426.2,2426.1,0.05]
[1728057742307,0.64638396,2426.2,2426.1,0.05]
[1728057742899,4.76805396,2426.2,2426.1,0.05]
[1728057743081,5.65701136,2426.2,2426.1,0.05]
[1728057743530,0.55,2426.0,2425.2,0.05]
[1728057743725,8.88634136,2426.2,2425.2,0.05]
[1728057743726,5.5056,2425.3,2425.2,0.05]
[1728057743934,5.5056,2425.3,2424.8,2.0]
[1728057743935,4.12354,2425.1,2425.0,0.05]
[1728057745228,4.67354,2425.1,2425.0,0.05]
[1728057745399,4.67354,2425.1,2424.8,2.0]
[1728057745400,7.67388,2424.9,2424.8,2.0]
[1728057745582,12.38615263,2424.9,2424.8,2.0]
[1728057745825,14.59121211,2424.9,2424.8,2.0]
[1728057746212,15.18727432,2424.9,2424.8,2.0]
[1728057746586,16.00837432,2424.9,2424.8,2.0]
[1728057746905,17.20421663,2424.9,2424.8,0.58794367]
[1728057747284,16.60815442,2424.9,2424.8,0.58794367]
[1728057747789,10.70003948,2424.9,2424.8,0.58794367]
[1728057751797,11.29610169,2424.9,2424.8,0.58794367]
[1728057752003,11.29610169,2424.9,2423.8,0.05]
[1728057752004,4.12558,2423.9,2423.8,0.05]
[1728057752202,4.12543,2424.0,2423.0,4.127]
[1728057752203,4.67609,2423.6,2423.3,0.05]
[1728057752402,4.12643,2423.4,2423.3,0.05]
[1728057753203,4.12677,2423.2,2423.1,0.05]
[1728057754735,8.25337,2423.3,2423.1,0.05]
[1728057755036,4.12677,2423.2,2423.1,0.05]
[1728057755380,4.12727,2423.0,2422.9,0.05]
[1728057758064,4.12627,2423.5,2423.4,0.05]
[1728057759313,4.951509,2423.5,2423.4,0.05]
[1728057759464,5.501509,2423.5,2423.4,0.05]
[1728057759980,4.12711,2423.0,2422.9,0.05]
[1728057760307,4.12731,2422.9,2422.6,0.816]
[1728057760471,4.12711,2423.0,2422.6,0.816]
[1728057760901,0.825239,2423.5,2422.7,4.12747]
[1728057761206,4.12687,2423.2,2422.7,4.12747]
[1728057761411,4.12687,2423.2,2422.6,0.816]
[1728057761412,4.12569,2423.9,2423.3,0.7798]
[1728057761577,4.12579,2423.8,2423.4,4.12643]
[1728057761904,4.12499,2424.3,2423.3,0.7798]
[1728057761905,4.12503,2424.3,2423.3,0.7798]
[1728057762111,4.12558,2423.9,2423.7,0.7798]
[1728057762469,4.12595,2423.7,2423.4,0.7798]
[1728057763069,4.12626,2423.5,2423.4,0.7798]
[1728057763469,4.12626,2423.5,2422.3,4.12828]
[1728057763470,4.12654,2423.4,2422.9,4.88757]
[1728057763981,9.49492903,2424.0,2422.9,4.88757]
[1728057763982,4.88262,2424.1,2423.0,0.8096]
[1728057764174,8.2507,2424.1,2423.7,0.8096]
[1728057764369,4.12532,2424.1,2423.7,0.8096]
[1728057764672,4.12553,2424.0,2423.7,0.8096]
[1728057765009,4.12606,2423.7,2423.4,0.7723]
[1728057765515,4.12473,2424.5,2422.7,4.12753]
[1728057765516,4.12445,2424.6,2424.1,4.12519]
[1728057765682,5.66617417,2424.8,2424.2,0.7936]
[1728057765683,4.12486,2424.4,2424.2,0.7936]
[1728057765882,4.12451,2424.6,2424.2,0.7936]
[1728057766096,4.12474,2424.4,2424.2,0.7936]
[1728057766298,4.12474,2424.4,2424.0,4.12539]
[1728057766471,4.12512,2424.2,2423.9,0.7695]
[1728057766671,4.12508,2424.2,2423.9,0.7695]
[1728057766911,4.12502,2424.3,2423.9,0.7695]
[1728057767069,4.12507,2424.2,2423.9,0.7695]
[1728057767510,4.12507,2424.2,2423.6,4.12598]
[1728057767511,4.12524,2424.1,2423.7,4.12583]
[1728057767709,4.12507,2424.2,2423.7,4.12583]
[1728057768015,4.12507,2424.2,2423.7,4.1258]
[1728057768016,8.25024,2424.2,2423.7,4.1258]
[1728057768173,4.12591,2423.8,2423.6,0.8177]
[1728057768373,4.12556,2424.0,2423.4,4.12633]
[1728057768579,4.12556,2424.0,2423.6,4.12608]
[1728057768777,4.12556,2424.0,2423.3,0.7904]
[1728057768994,4.12583,2423.8,2423.4,4.12642]
[1728057769717,4.12553,2424.0,2423.4,4.12634]
[1728057769925,4.12576,2423.8,2423.4,4.12634]
[1728057770090,4.1257,2423.9,2423.4,4.12634]
[1728057770411,4.1257,2423.9,2423.3,0.7904]
[1728057770412,4.12578,2423.8,2423.3,0.7904]
[1728057770611,0.51136465,2424.0,2423.3,0.7904]
[1728057770612,4.12602,2423.7,2423.3,0.7904]
[1728057770818,4.12568,2423.9,2423.3,0.7904]
[1728057771017,3.0,2424.5,2423.4,4.1264]
[1728057771182,4.12501,2424.3,2423.9,4.12549]
[1728057771377,4.12509,2424.2,2423.8,4.12562]
[1728057771679,4.12549,2424.0,2423.5,4.90103]
[1728057772015,0.825082,2424.0,2423.7,4.12591]
[1728057772216,8.25068,2424.1,2423.6,4.12607]
[1728057772425,4.12508,2424.2,2423.6,4.12604]
[1728057772715,4.88131,2424.7,2423.7,4.12581]
[1728057772716,4.12491,2424.3,2423.7,4.12581]
[1728057772924,4.12491,2424.3,2423.8,4.12567]
[1728057773084,4.12508,2424.2,2423.8,4.12567]
[1728057773479,4.12508,2424.2,2423.7,4.1259]
[1728057773684,8.25026,2424.2,2423.7,4.1259]
[1728057774328,4.12508,2424.2,2423.7,4.12584]
[1728057774487,4.12542,2424.0,2423.6,4.126]
[1728057774681,4.12526,2424.1,2423.6,4.126]
[1728057775228,4.6200859,2424.2,2423.6,4.126]
[1728057775229,4.12542,2424.0,2423.6,4.126]
[1728057775587,4.12525,2424.1,2423.6,4.126]
[1728057776230,4.12549,2424.0,2423.6,4.126]
[1728057776811,4.12549,2424.0,2423.5,4.90098]
[1728057776991,4.12549,2424.0,2423.6,4.12603]
[1728057777438,4.12558,2423.9,2423.5,4.90103]
[1728057778296,4.12558,2423.9,2423.5,0.7748]
[1728057778297,4.12576,2423.8,2423.5,0.7748]
[1728057778517,4.12558,2423.9,2423.5,0.7748]
[1728057778686,9.158384,2423.9,2423.5,0.7748]
[1728057778881,4.12582,2423.8,2423.5,0.7748]
[1728057779382,4.12593,2423.7,2423.3,4.12647]
[1728057779623,0.907074,2423.9,2423.6,4.12608]
[1728057779780,4.12555,2424.0,2423.6,4.12601]
[1728057779985,4.6201459,2424.2,2423.6,4.12601]
[1728057779986,4.6201559,2424.2,2423.6,4.12601]
[1728057780297,4.12493,2424.3,2423.9,4.12558]
[1728057780624,4.12493,2424.3,2423.7,4.95541]
[1728057780824,4.12549,2424.0,2423.7,0.8295]
[1728057781027,4.94833,2424.4,2423.7,0.8295]
[1728057781196,4.12497,2424.3,2423.9,4.12556]
[1728057781581,4.12497,2424.3,2423.7,4.95533]
[1728057781781,4.12507,2424.2,2423.8,4.12573]
[1728057781987,8.25027,2424.2,2423.7,4.9554]
[1728057782283,0.494833,2424.4,2423.7,0.8295]
[1728057782496,4.125,2424.3,2423.7,0.8295]
[1728057782689,4.12507,2424.2,2423.8,4.12573]
[1728057783097,4.125,2424.3,2423.9,4.12547]
[1728057783449,4.125,2424.3,2423.8,4.12573]
[1728057783738,0.7792,2424.8,2423.7,0.8295]
[1728057783908,0.7792,2424.8,2423.4,0.785]
[1728057783909,4.1257,2423.9,2423.4,0.785]
[1728057784115,0.7899,2424.2,2423.4,0.785]
[1728057784116,4.12601,2423.7,2423.4,0.785]
[1728057784437,4.12611,2423.6,2423.1,0.785]
[1728057784640,4.12634,2423.5,2423.1,0.785]
[1728057784938,4.12626,2423.5,2423.1,4.91186]
[1728057785144,4.12604,2423.7,2423.2,4.12668]
[1728057785439,4.12526,2424.1,2423.7,0.7938]
[1728057785594,4.12544,2424.0,2423.7,0.7938]
[1728057786218,8.25064,2424.1,2423.7,0.7938]
[1728057786633,4.88107,2424.5,2423.2,4.617946]
[1728057786634,4.12585,2423.8,2423.3,4.91032]
[1728057786936,4.12585,2423.8,2423.3,0.7838]
[1728057786937,4.12617,2423.6,2423.3,0.7838]
[1728057787234,4.12593,2423.7,2423.3,4.9103]
[1728057787436,4.12585,2423.8,2423.3,4.9103]
[1728057787603,4.12594,2423.7,2423.3,0.7838]
[1728057788004,4.12594,2423.7,2423.3,4.91039]
[1728057788503,4.12594,2423.7,2423.3,4.90039]
[1728057788700,0.825163,2423.7,2423.3,0.7738]
[1728057788926,4.12618,2423.6,2423.3,0.7738]
[1728057789135,4.12627,2423.5,2423.3,0.7738]
[1728057789505,4.12643,2423.4,2423.3,0.7238]
[1728057789705,4.12627,2423.5,2423.3,0.7238]
[1728057790347,4.12653,2423.4,2423.0,4.12702]
[1728057790643,4.12653,2423.4,2422.7,4.12759]
[1728057790644,4.12685,2423.2,2422.7,4.12759]
[1728057790849,4.12703,2423.1,2422.7,4.12759]
[1728057791136,4.12679,2423.2,2422.7,4.12751]
[1728057791444,3.56027679,2425.0,2422.4,4.12805]
[1728057791445,4.12747,2422.8,2422.4,4.12805]
[1728057791615,4.12729,2422.9,2422.5,4.1279]
[1728057791940,4.91313,2423.3,2422.3,4.12815]
[1728057791941,4.1272,2423.0,2422.3,4.12815]
[1728057792137,0.7865,2423.3,2422.3,4.1283]
[1728057792437,8.26910935,2423.7,2422.3,4.1283]
[1728057792438,4.12642,2423.5,2422.8,4.12728]
[1728057792746,4.12661,2423.3,2422.9,0.7736]
[1728057792905,4.12662,2423.3,2422.9,0.7736]
[1728057793739,4.12683,2423.2,2422.9,0.7736]
[1728057794235,4.12695,2423.1,2422.9,0.7736]
[1728057794613,4.12679,2423.2,2422.9,0.7736]
[1728057794815,0.825341,2423.1,2422.5,0.7681]
[1728057795014,4.12729,2422.9,2422.5,4.89603]
[1728057795943,4.12711,2423.1,2422.5,0.7681]
[1728057795944,4.12706,2423.1,2422.5,0.7681]
[1728057796140,4.12713,2423.0,2422.5,0.7681]
[1728057796467,4.12706,2423.1,2422.6,8.2555]
[1728057796626,4.88956,2423.7,2422.7,4.1276]
[1728057796822,4.12663,2423.3,2422.8,4.12735]
[1728057797270,4.12695,2423.1,2422.7,4.1276]
[1728057797430,4.12677,2423.2,2422.7,4.12747]
[1728057797631,4.12677,2423.2,2422.8,4.12743]
[1728057798039,4.1271,2423.1,2422.6,4.12766]
[1728057798642,4.12703,2423.1,2422.6,8.25538]
[1728057798833,4.12703,2423.1,2422.7,4.12762]
[1728057799032,4.12712,2423.0,2422.6,4.12766]
[1728057799284,4.12729,2422.9,2422.5,4.12793]
[1728057799464,4.12752,2422.8,2422.2,0.7736]
[1728057799785,4.12764,2422.7,2422.3,8.25642]
[1728057800139,4.12764,2422.7,2422.3,4.1282]
[1728057800339,4.12748,2422.8,2422.3,8.25641]
[1728057800575,4.12763,2422.7,2422.3,8.25641]
[1728057800762,4.12763,2422.7,2422.3,4.1282]
[1728057801353,4.12786,2422.6,2422.2,0.7736]
[1728057801777,4.12799,2422.5,2422.2,0.7736]
[1728057801969,4.12826,2422.4,2422.2,0.7736]
[1728057802179,4.12799,2422.5,2422.2,0.7736]
[1728057802491,4.12821,2422.4,2422.0,4.12881]
[1728057802989,4.12821,2422.4,2421.9,0.7714]
[1728057803281,4.12821,2422.4,2421.9,4.90031]
[1728057803487,8.2565,2422.4,2421.9,4.90031]
[1728057803684,4.1283,2422.3,2421.9,4.90031]
[1728057803890,4.12847,2422.2,2421.9,0.7714]
[1728057804049,4.12837,2422.3,2421.9,0.7714]
[1728057804489,4.12837,2422.3,2421.7,4.12931]
[1728057804490,4.12864,2422.2,2421.7,4.12931]
[1728057804663,4.953988,2422.3,2421.9,4.12897]
[1728057804852,0.825658,2422.3,2421.6,4.90078]
[1728057805179,4.93741,2422.1,2421.3,0.7736]
[1728057805384,4.12899,2421.9,2421.0,0.7736]
[1728057805687,0.8087,2422.1,2421.0,0.7736]
[1728057805688,4.12996,2421.4,2421.0,0.7736]
[1728057805901,4.12996,2421.4,2421.0,4.90403]
[1728057806190,4.12996,2421.4,2421.0,4.90412]
[1728057806361,4.12968,2421.5,2421.1,4.13034]
[1728057806899,4.12968,2421.5,2421.0,4.90403]
[1728057807206,4.12968,2421.5,2421.0,9.03447]
[1728057807390,4.12968,2421.5,2421.1,4.1303]
[1728057807596,4.12993,2421.4,2420.9,4.13065]
[1728057807766,1.650429,2421.5,2421.0,4.13041]
[1728057807767,4.955679,2421.5,2421.0,4.13041]
[1728057807966,4.12991,2421.4,2420.9,4.13067]
[1728057808190,4.13001,2421.3,2420.9,4.13067]
[1728057808391,4.13001,2421.3,2420.8,8.26149]
[1728057808708,5.0385839,2421.3,2420.7,0.7736]
[1728057808911,1.7066739,2421.3,2420.7,0.7736]
[1728057809096,4.13043,2421.1,2420.7,4.9046]
[1728057809406,0.7981,2421.3,2420.4,4.89941]
[1728057809407,4.13053,2421.0,2420.4,4.89941]
[1728057809622,4.1307,2420.9,2420.5,4.13129]
[1728057809918,4.1303,2421.2,2420.6,4.13111]
[1728057810075,4.131,2420.8,2420.3,4.13171]
[1728057810405,4.13072,2420.9,2420.5,4.13131]
[1728057810704,4.92997,2421.4,2420.3,4.13157]
[1728057810705,8.67494,2420.8,2420.3,4.13157]
[1728057811003,0.8001,2420.7,2420.1,4.13194]
[1728057811208,4.93129,2420.7,2420.2,4.13186]
[1728057812375,0.4131,2420.8,2420.1,4.13194]
[1728057812575,4.13078,2420.9,2419.9,8.85145935]
[1728057812813,4.13088,2420.8,2420.3,4.13163]
[1728057813619,4.13088,2420.8,2420.4,4.13153]
[1728057814116,4.13106,2420.7,2419.9,4.71910935]
[1728057814273,4.13094,2420.8,2420.2,4.13186]
[1728057814482,4.13094,2420.8,2420.1,4.1319]
[1728057814483,4.13111,2420.7,2420.1,4.1319]
[1728057814821,4.13111,2420.7,2420.2,4.13178]
[1728057815582,0.7525,2421.3,2420.8,4.13069]
[1728057815783,2.71931392,2422.7,2421.2,0.7736]
[1728057815784,4.12927,2421.8,2421.2,0.7736]
[1728057815980,0.7525,2422.0,2421.2,4.90368]
[1728057815981,4.12945,2421.7,2421.2,4.90368]
[1728057816233,4.542395,2421.7,2421.2,4.90368]
[1728057816385,4.542375,2421.7,2421.2,4.90368]
[1728057816586,4.542375,2421.7,2421.2,0.7736]
[1728057816587,4.12973,2421.5,2421.2,0.7736]
[1728057816894,4.12992,2421.4,2421.0,4.13051]
[1728057817077,4.12951,2421.6,2421.0,4.13051]
[1728057817285,4.12947,2421.7,2421.0,4.620791]
[1728057817598,0.7525,2422.0,2421.6,4.12939]
[1728057817792,4.953349,2422.6,2421.8,4.1291]
[1728057817793,4.1284,2422.3,2421.8,4.1291]
[1728057818135,0.825549,2422.6,2422.1,4.71910935]
[1728057818295,0.7905,2422.8,2421.8,8.25806]
[1728057818296,4.12831,2422.3,2421.8,8.25806]
[1728057818495,4.12796,2422.5,2422.0,4.12879]
[1728057818733,4.12796,2422.5,2421.9,4.12898]
[1728057818734,4.12825,2422.4,2421.9,4.12898]
[1728057818940,4.12833,2422.3,2421.8,8.25809]
[1728057819090,4.12833,2422.3,2421.8,4.12902]
[1728057819288,4.12796,2422.5,2421.9,4.12894]
[1728057819289,8.25608,2422.5,2421.9,4.12894]
[1728057819524,4.12774,2422.7,2422.2,4.12833]
[1728057819788,4.12712,2423.0,2422.5,4.12788]
[1728057820007,4.12729,2422.9,2422.4,4.12804]
[1728057820221,4.12753,2422.8,2422.3,4.12822]
[1728057820404,4.12729,2422.9,2422.1,4.71910935]
[1728057820405,4.12729,2422.9,2422.4,4.1281]
[1728057820608,4.12713,2423.0,2422.5,4.12788]
[1728057820814,5.034697,2423.0,2422.5,4.12788]
[1728057820996,4.12729,2422.9,2422.4,4.1281]
[1728057821200,0.907567,2423.0,2422.5,4.12788]
[1728057821405,4.12737,2422.9,2422.4,4.1281]
[1728057821589,5.1257257,2422.9,2422.4,8.25613]
[1728057821816,5.1257257,2422.9,2422.5,4.12794]
[1728057821993,4.12737,2422.9,2422.5,4.12794]
[1728057822325,4.12747,2422.8,2422.3,4.12822]
[1728057822692,4.12747,2422.8,2422.2,4.12833]
[1728057822915,4.12779,2422.6,2422.0,4.1287]
[1728057823120,4.12806,2422.5,2422.0,4.1287]
[1728057823327,4.12817,2422.4,2422.0,4.1287]
[1728057823697,5.752445,2422.5,2421.9,4.90255]
[1728057823915,5.752445,2422.5,2422.0,4.12874]
[1728057824238,5.752445,2422.5,2421.9,4.90255]
[1728057824239,5.752445,2422.5,2422.1,4.12863]
[1728057824398,1.624385,2422.5,2422.1,4.12856]
[1728057824594,1.624385,2422.5,2421.9,4.90247]
[1728057825131,5.752455,2422.5,2422.0,4.12881]
[1728057825691,5.752455,2422.5,2422.1,4.12863]
[1728057826094,1.624385,2422.5,2422.1,4.12863]
[1728057826294,1.624385,2422.5,2421.6,0.7736]
[1728057826295,0.5752255,2422.4,2421.6,0.7736]
[1728057826546,4.12843,2422.3,2421.8,4.12906]
[1728057826689,4.12843,2422.3,2421.8,8.25813]
[1728057826896,4.12843,2422.3,2421.8,4.12906]
[1728057827142,8.25684,2422.3,2421.8,4.12906]
[1728057827490,4.12841,2422.3,2421.8,8.25813]
[1728057827795,4.92687,2422.5,2421.8,4.12906]
[1728057828032,4.92687,2422.5,2422.0,4.12872]
[1728057828539,4.12823,2422.4,2421.9,4.12898]
[1728057829020,4.12823,2422.4,2422.0,4.1288]
[1728057829792,4.12823,2422.4,2421.9,4.12898]
[1728057829992,4.12856,2422.2,2421.7,4.12925]
[1728057830237,4.12876,2422.1,2421.6,4.12949]
[1728057830939,4.12882,2422.0,2421.6,4.12949]
[1728057831120,4.12842,2422.3,2421.7,4.1292]
[1728057831292,4.12822,2422.4,2421.9,4.12891]
[1728057831497,5.03391,2422.3,2421.8,4.12907]
[1728057831726,4.12852,2422.2,2421.8,4.12907]
[1728057832043,4.12865,2422.1,2421.7,4.12931]
[1728057832541,5.03391,2422.3,2421.8,4.12914]
[1728057832542,9.16236,2422.3,2421.8,4.12914]
[1728057832835,5.03391,2422.3,2421.9,4.12898]
[1728057832993,9.16231,2422.3,2421.9,4.12898]
[1728057833205,0.7988,2422.5,2421.9,4.1289]
[1728057833206,9.05501,2422.5,2421.9,4.1289]
[1728057833408,9.055,2422.5,2422.0,4.12874]
[1728057833636,9.055,2422.5,2421.9,4.12889]
[1728057833637,4.12822,2422.4,2421.9,4.12889]
[1728057833954,4.9269,2422.5,2422.0,4.1288]
[1728057834118,4.12825,2422.4,2422.0,4.1288]
[1728057834538,4.12835,2422.3,2421.8,4.12903]
[1728057834738,4.12859,2422.2,2421.7,4.12932]
[1728057834910,4.12872,2422.1,2421.7,4.12932]
[1728057835110,4.12872,2422.1,2421.6,4.12947]
[1728057835311,4.12882,2422.0,2421.6,4.12947]
[1728057835511,4.954275,2422.2,2421.7,4.1293]
[1728057836043,4.12831,2422.3,2421.9,4.1289]
[1728057836343,4.12827,2422.4,2421.9,8.25779]
[1728057836544,4.12832,2422.3,2421.9,4.12887]
[1728057836749,1.29149,2422.5,2421.7,4.12917]
[1728057837052,1.29149,2422.5,2421.3,5.30499]
[1728057837053,4.12855,2422.2,2421.8,4.12915]
[1728057837414,4.12855,2422.2,2421.6,4.12939]
[1728057837415,4.12851,2422.2,2421.7,4.1292]
[1728057837616,4.12851,2422.2,2421.3,5.30499]
[1728057837617,4.12875,2422.1,2421.5,4.12952]
[1728057837810,4.12875,2422.1,2421.6,4.12939]
[1728057838119,4.12889,2422.0,2421.6,4.12939]
[1728057839359,4.12875,2422.1,2421.7,4.12932]
[1728057840313,0.825715,2422.1,2421.7,4.12932]
[1728057840512,4.1285,2422.2,2421.8,4.12914]
[1728057840713,4.1284,2422.3,2421.7,4.12932]
[1728057840714,4.12864,2422.1,2421.7,4.12932]
[1728057841147,4.12849,2422.2,2421.7,8.25851]
[1728057841457,4.12849,2422.2,2421.8,4.12915]
[1728057841816,4.12833,2422.3,2421.8,4.12915]
[1728057842020,4.954143,2422.2,2421.8,4.12915]
[1728057842214,4.12849,2422.2,2421.8,4.12915]
[1728057843149,8.25677,2422.3,2421.8,4.12915]
[1728057843919,4.12852,2422.2,2421.8,4.12915]
[1728057844349,4.12852,2422.2,2421.7,4.12919]
[1728057844553,4.541512,2422.1,2421.7,4.12919]
[1728057845218,0.8302,2421.9,2421.3,0.7608]
[1728057845418,0.8302,2421.9,2421.3,4.12999]
[1728057845651,4.12895,2422.0,2421.6,4.12937]
[1728057845652,4.12889,2422.0,2421.6,4.12937]
[1728057845851,4.12902,2421.9,2421.5,4.12964]
[1728057846152,4.12902,2421.9,2421.1,5.39486084]
[1728057846153,4.93273,2421.7,2421.3,4.12999]
[1728057846363,0.8034,2421.7,2421.3,4.12999]
[1728057846517,4.93277,2421.7,2421.3,4.12999]
[1728057846953,5.838972,2421.7,2421.3,4.12999]
[1728057847859,5.838972,2421.7,2421.1,4.80609149]
[1728057847860,1.709602,2421.7,2421.1,0.67575149]
[1728057848072,4.1298,2421.5,2421.1,0.67575149]
[1728057848276,4.12973,2421.5,2421.1,0.67575149]
[1728057848448,8.25956,2421.5,2421.1,0.67575149]
[1728057848770,4.12985,2421.4,2421.1,0.67575149]
[1728057849272,4.13004,2421.3,2420.9,4.13061]
[1728057851280,0.82598,2421.3,2420.6,4.90478]
[1728057851480,0.797,2421.0,2420.0,0.7736]
[1728057851766,0.797,2421.0,2420.2,4.13182]
[1728057851972,8.26295,2420.5,2420.0,4.90573]
[1728057852225,4.13123,2420.6,2420.1,4.13205]
[1728057852531,4.13123,2420.6,2420.1,4.13195]
[1728057852682,4.13139,2420.5,2420.1,4.13195]
[1728057853108,8.26256,2420.6,2420.1,4.13195]
[1728057853308,4.13138,2420.5,2420.1,4.13195]
[1728057854424,4.92755,2421.0,2420.1,4.13195]
[1728057854425,4.13113,2420.7,2420.1,4.13195]
[1728057854584,4.13113,2420.7,2420.2,4.1318]
[1728057854784,4.13113,2420.7,2420.3,4.1317]